bitfinex/quotes_BTCUSD_20220207
["timestamp","ask_amount","ask_price","bid_price","bid_amount"]
[1644270466924,0.05691,43937.0,43932.0,0.26386732]
[1644270467125,0.05691,43937.0,43931.0,0.33218389]
[1644270467327,0.0499121,43935.0,43931.0,0.33218389]
[1644270467526,0.0499121,43935.0,43931.0,0.02]
[1644270468126,0.05,43940.0,43931.0,0.02]
[1644270468327,0.163819,43941.0,43931.0,0.02]
[1644270468730,0.113819,43941.0,43931.0,0.02]
[1644270468934,0.056909,43938.0,43931.0,0.02]
[1644270469131,0.0499121,43935.0,43931.0,0.02]
[1644270469331,0.113819,43941.0,43931.0,0.02]
[1644270469570,0.113826,43937.0,43931.0,0.02]
[1644270469771,0.056913,43939.0,43936.0,0.07316706]
[1644270469972,0.0499121,43937.0,43936.0,0.07316706]
[1644270470371,0.056913,43939.0,43936.0,0.07316706]
[1644270471173,0.113827,43939.0,43936.0,0.07316706]
[1644270471373,0.056914,43938.0,43936.0,0.07316706]
[1644270471578,0.056914,43938.0,43935.0,0.00069846]
[1644270471777,0.11383,43938.0,43935.0,0.00069846]
[1644270471975,0.11383,43938.0,43931.0,0.02]
[1644270471976,0.0499121,43936.0,43931.0,0.02]
[1644270472175,0.0499121,43936.0,43934.0,0.00069847]
[1644270473076,0.0499121,43936.0,43931.0,0.02]
[1644270473325,0.0499121,43936.0,43933.0,0.08491696]
[1644270473522,0.1068251,43936.0,43933.0,0.08491696]
[1644270474324,0.1068251,43936.0,43933.0,0.08421848]
[1644270476222,0.1068251,43936.0,43933.0,0.08441517]
[1644270476223,0.056913,43936.0,43933.0,0.08441517]
[1644270477070,0.056913,43936.0,43933.0,0.08421848]
[1644270477271,0.056913,43936.0,43933.0,0.08441517]
[1644270478073,0.056913,43936.0,43933.0,0.08421848]
[1644270478273,0.056913,43936.0,43933.0,0.08441517]
[1644270479280,0.056913,43936.0,43933.0,0.08421848]
[1644270479477,0.056913,43936.0,43933.0,0.08441517]
[1644270480481,0.056913,43936.0,43933.0,0.08421848]
[1644270480680,0.056913,43936.0,43933.0,0.08441517]
[1644270481718,0.056913,43936.0,43933.0,0.08421848]
[1644270481923,0.056913,43936.0,43933.0,0.08441517]
[1644270482319,0.056905,43938.0,43933.0,0.08441517]
[1644270482920,0.05680184,43938.0,43933.0,0.08491696]
[1644270483519,0.05680184,43938.0,43933.0,0.08511365]
[1644270483919,0.05680184,43938.0,43937.0,0.21479939]
[1644270488920,0.25945344,43938.0,43935.0,0.00089515]
[1644270489121,0.25945344,43938.0,43935.0,0.00069846]
[1644270489318,0.03900713,43937.0,43935.0,0.00069846]
[1644270489519,0.056912,43936.0,43935.0,0.00069846]
[1644270489920,0.1068241,43936.0,43932.0,0.00019669]
[1644270490121,0.1068241,43936.0,43931.0,0.37810077]
[1644270490319,0.1068241,43936.0,43931.0,0.31251198]
[1644270491119,0.056915,43935.0,43931.0,0.31251198]
[1644270491318,0.056914,43934.0,43931.0,0.31251198]
[1644270491719,0.056914,43934.0,43931.0,0.31270867]
[1644270493874,0.056914,43934.0,43931.0,0.31251198]
[1644270494077,0.056914,43934.0,43931.0,0.02]
[1644270494275,0.0455,43933.0,43932.0,0.19526778]
[1644270494477,0.0455,43933.0,43932.0,0.19526819]
[1644270494677,0.0455,43933.0,43927.0,0.0011]
[1644270494880,0.0499121,43928.0,43927.0,0.0011]
[1644270495477,0.0954121,43928.0,43927.0,0.0011]
[1644270496134,0.4192191,43928.0,43927.0,0.0011]
[1644270496341,1.35,43927.0,43913.0,0.29251198]
[1644270496533,0.0499121,43914.0,43911.0,0.0211]
[1644270496735,0.0455,43913.0,43911.0,0.0211]
[1644270496931,0.04095001,43913.0,43911.0,0.0211]
[1644270497132,0.04095001,43913.0,43911.0,0.24436254]
[1644270497330,0.04095001,43913.0,43912.0,0.08827751]
[1644270497733,0.04095001,43913.0,43912.0,0.003]
[1644270497934,0.45,43911.0,43909.0,0.0041]
[1644270498141,0.45,43911.0,43903.0,0.0022]
[1644270498142,0.323807,43909.0,43903.0,0.0022]
[1644270498335,0.0499121,43905.0,43901.0,0.02]
[1644270498535,0.2475916,43902.0,43901.0,0.02]
[1644270498736,0.51753619,43902.0,43896.0,0.0011]
[1644270498939,0.323807,43901.0,43896.0,0.0011]
[1644270499136,0.369307,43901.0,43896.0,0.0011]
[1644270499778,0.0455,43901.0,43896.0,0.0011]
[1644270500178,0.0455,43901.0,43898.0,0.21599088]
[1644270500373,0.0455,43901.0,43900.0,0.32366384]
[1644270500574,0.0455,43901.0,43900.0,0.79461509]
[1644270501075,0.0455,43901.0,43900.0,0.32366384]
[1644270502277,0.0455,43901.0,43900.0,0.248]
[1644270502475,0.65964677,43901.0,43900.0,0.248]
[1644270502881,0.369307,43901.0,43900.0,0.248]
[1644270503355,0.540233,43901.0,43900.0,0.248]
[1644270503748,0.590233,43901.0,43900.0,0.248]
[1644270504746,0.74657657,43901.0,43900.0,0.248]
[1644270505148,0.590233,43901.0,43900.0,0.248]
[1644270506351,0.690233,43901.0,43900.0,0.248]
[1644270506549,0.690233,43901.0,43900.0,0.21429353]
[1644270506550,0.94254365,43901.0,43900.0,0.21429353]
[1644270506753,1.35,43900.0,43897.0,0.003]
[1644270506951,1.7692191,43900.0,43898.0,0.00069095]
[1644270507185,0.57556267,43900.0,43898.0,0.00069095]
[1644270507785,0.63254561,43900.0,43898.0,0.00069095]
[1644270507990,0.38079,43899.0,43897.0,0.003]
[1644270508187,0.0455,43898.0,43897.0,0.00369096]
[1644270508386,0.369307,43898.0,43897.0,0.00369096]
[1644270509186,0.369307,43898.0,43897.0,0.003]
[1644270510187,0.36160041,43898.0,43897.0,0.003]
[1644270512425,0.323807,43898.0,43897.0,0.003]
[1644270515382,0.323807,43898.0,43895.0,0.00289098]
[1644270515383,0.33437305,43896.0,43895.0,0.00289098]
[1644270515578,0.42978515,43896.0,43895.0,0.00289098]
[1644270515787,0.0954121,43896.0,43895.0,0.00289098]
[1644270516077,0.4192191,43896.0,43895.0,0.00289098]
[1644270516278,0.369307,43896.0,43895.0,0.09285328]
[1644270516481,0.07661909,43899.0,43895.0,0.0921623]
[1644270516680,0.07661909,43899.0,43896.0,0.19516077]
[1644270516681,0.01963609,43899.0,43896.0,0.19516077]
[1644270516879,0.0006908,43906.0,43896.0,0.49516077]
[1644270517080,0.0006908,43906.0,43905.0,0.25520191]
[1644270517280,0.0006908,43906.0,43901.0,0.0455]
[1644270517678,0.20847297,43914.0,43902.0,0.27129124]
[1644270517883,0.0002242,43906.0,43903.0,0.3455]
[1644270518078,0.0002242,43906.0,43904.0,0.22892802]
[1644270518336,0.0002242,43906.0,43905.0,0.0455]
[1644270518524,0.0002242,43906.0,43905.0,0.13439714]
[1644270518723,0.0002242,43906.0,43905.0,0.34496112]
[1644270518924,0.0181334,43915.0,43905.0,0.34496112]
[1644270519124,0.0181334,43915.0,43913.0,0.19656178]
[1644270519826,0.0181334,43915.0,43905.0,0.13439714]
[1644270520028,0.0181334,43915.0,43905.0,0.08889714]
[1644270520029,0.1068541,43914.0,43905.0,0.08889714]
[1644270520226,0.1068541,43914.0,43906.0,0.01943456]
[1644270520628,0.056942,43914.0,43906.0,0.01943456]
[1644270520832,0.19828262,43910.0,43906.0,0.01943456]
[1644270521029,0.0499121,43913.0,43906.0,0.01943456]
[1644270521030,0.0499121,43908.0,43906.0,0.01943456]
[1644270521227,0.056955,43907.0,43906.0,0.01943456]
[1644270522074,0.056955,43907.0,43906.0,0.10541937]
[1644270522478,0.056955,43907.0,43906.0,0.08598481]
[1644270524780,0.17127816,43902.0,43901.0,0.32184472]
[1644270528536,0.22127816,43902.0,43901.0,0.32184472]
[1644270528732,0.17127816,43902.0,43901.0,0.32184472]
[1644270529136,0.17127816,43902.0,43901.0,0.31684472]
[1644270529332,0.22127816,43902.0,43901.0,0.07668435]
[1644270529776,0.17127816,43902.0,43901.0,0.07668435]
[1644270530476,0.17127816,43902.0,43901.0,0.3018627]
[1644270537176,0.16973698,43902.0,43901.0,0.3018627]
[1644270537877,0.00062738,43905.0,43902.0,1.35]
[1644270538078,0.02079804,43911.0,43902.0,1.45019387]
[1644270538281,0.00062738,43905.0,43903.0,0.04569387]
[1644270538479,0.00062738,43905.0,43903.0,0.0455]
[1644270539278,0.01930018,43911.0,43903.0,0.10243699]
[1644270539480,0.00062766,43906.0,43903.0,0.10263086]
[1644270539677,0.00062766,43906.0,43904.0,0.21679122]
[1644270539880,0.00062766,43906.0,43905.0,0.0455]
[1644270540478,0.01930018,43911.0,43906.0,0.33660278]
[1644270540681,0.00062766,43908.0,43907.0,0.0455]
[1644270541136,0.056927,43926.0,43910.0,0.15]
[1644270541334,0.0499121,43930.0,43914.0,0.01904596]
[1644270541538,0.0499121,43930.0,43915.0,0.0455]
[1644270541832,0.0499121,43930.0,43916.0,0.38403102]
[1644270542032,0.0499121,43930.0,43929.0,0.20371648]
[1644270542232,0.25087841,43935.0,43929.0,0.28552846]
[1644270542437,0.19396241,43938.0,43929.0,0.33102846]
[1644270542634,0.03,43939.0,43929.0,0.33102846]
[1644270542833,0.03,43939.0,43929.0,0.48102846]
[1644270543035,0.001,43941.0,43929.0,0.48102846]
[1644270543233,0.00062762,43936.0,43934.0,0.1968341]
[1644270543432,0.00062762,43936.0,43935.0,0.0455]
[1644270544032,0.001,43941.0,43935.0,0.0455]
[1644270544434,0.00062762,43938.0,43935.0,0.0455]
[1644270544680,0.20059859,43936.0,43935.0,0.0455]
[1644270545480,0.056913,43937.0,43935.0,0.0455]
[1644270549229,0.056913,43937.0,43929.0,0.08181198]
[1644270549432,0.00062607,43938.0,43929.0,0.08181198]
[1644270549829,0.0999121,43940.0,43930.0,1.0]
[1644270550030,0.0999121,43940.0,43929.0,0.13181198]
[1644270550229,0.0499121,43940.0,43929.0,0.13181198]
[1644270550430,0.31612554,43940.0,43929.0,0.15220772]
[1644270550629,0.0499121,43940.0,43933.0,0.19952206]
[1644270551029,0.001,43941.0,43933.0,0.19952206]
[1644270551631,0.001,43941.0,43936.0,0.22785299]
[1644270551833,0.001,43941.0,43937.0,0.07258471]
[1644270552687,0.001,43941.0,43937.0,0.37238693]
[1644270552990,0.001,43941.0,43938.0,0.0455]
[1644270553186,0.001,43946.0,43938.0,0.102386]
[1644270553386,0.01916013,43949.0,43939.0,0.05688098]
[1644270553585,0.01916013,43949.0,43942.0,0.27954847]
[1644270553785,0.01916013,43949.0,43943.0,0.60449144]
[1644270553985,0.00069207,43944.0,43943.0,0.60449144]
[1644270554186,0.00069207,43944.0,43943.0,0.70449144]
[1644270554783,0.01916013,43949.0,43943.0,0.37533238]
[1644270554986,0.01916013,43949.0,43944.0,0.05688]
[1644270555186,0.00069205,43949.0,43946.0,1.35]
[1644270555389,0.02074121,43958.0,43947.0,1.48365969]
[1644270555586,0.02074121,43958.0,43949.0,0.11374107]
[1644270555839,0.02074121,43958.0,43950.0,0.0955]
[1644270556027,0.02074121,43958.0,43955.0,0.3475767]
[1644270556229,0.02044774,43958.0,43956.0,0.20165172]
[1644270556428,0.02044774,43958.0,43957.0,0.0887061]
[1644270557428,0.02044774,43958.0,43957.0,0.1342061]
[1644270557632,0.02044774,43958.0,43957.0,0.1842061]
[1644270557829,0.02044774,43958.0,43957.0,0.51396563]
[1644270558231,0.00129347,43960.0,43959.0,1.05]
[1644270558532,0.001,43960.0,43959.0,1.2455]
[1644270558735,0.0016919,43960.0,43959.0,1.3023613]
[1644270558930,0.0016919,43960.0,43959.0,0.2523613]
[1644270559675,0.001,43960.0,43959.0,0.1523613]
[1644270559881,0.00069188,43962.0,43961.0,1.35]
[1644270560082,0.02,43979.0,43965.0,0.10685343]
[1644270560280,0.02,43979.0,43966.0,0.36469961]
[1644270560477,0.02,43979.0,43967.0,1.35]
[1644270560679,0.02,43979.0,43968.0,0.0455]
[1644270560878,0.02,43979.0,43978.0,0.25261847]
[1644270561076,0.02,43979.0,43978.0,0.33360267]
[1644270561277,0.02,43979.0,43978.0,0.43360267]
[1644270561480,0.02,43979.0,43978.0,0.0809842]
[1644270561679,0.02,43979.0,43978.0,0.0455]
[1644270562483,0.24745323,43979.0,43978.0,0.0455]
[1644270562679,0.37137334,43979.0,43978.0,0.0455]
[1644270562883,0.97117233,43979.0,43966.0,0.01919961]
[1644270563080,0.0499121,43967.0,43966.0,0.01919961]
[1644270563334,0.0499121,43974.0,43966.0,0.01919961]
[1644270563529,0.0499121,43974.0,43964.0,0.22012417]
[1644270563929,0.0499121,43974.0,43965.0,0.08394161]
[1644270564732,0.00069178,43972.0,43965.0,0.08394161]
[1644270565530,0.0499121,43971.0,43965.0,0.08394161]
[1644270565731,0.0499121,43971.0,43965.0,0.13394161]
[1644270565931,0.05060389,43971.0,43965.0,0.13394161]
[1644270566430,0.00069179,43971.0,43965.0,0.15558873]
[1644270566830,0.0499121,43973.0,43965.0,0.15558873]
[1644270567278,0.0499121,43973.0,43965.0,0.07164712]
[1644270567279,0.00022551,43970.0,43965.0,0.07164712]
[1644270567683,0.00022551,43970.0,43966.0,0.07641825]
[1644270567878,0.00022551,43970.0,43966.0,0.12641825]
[1644270568079,0.0499121,43973.0,43966.0,0.12641825]
[1644270568481,0.00022551,43970.0,43966.0,0.14654248]
[1644270568882,0.00022551,43970.0,43966.0,0.09654248]
[1644270569381,0.0499121,43970.0,43966.0,0.09654248]
[1644270569581,0.05013761,43970.0,43966.0,0.09654248]
[1644270569883,0.00022551,43970.0,43966.0,0.09654248]
[1644270570286,0.05013761,43970.0,43966.0,0.09654248]
[1644270570484,0.0499121,43970.0,43966.0,0.09654248]
[1644270570831,0.05060667,43970.0,43966.0,0.07641825]
[1644270571627,0.0455,43976.0,43966.0,0.07641825]
[1644270571829,0.0499121,43973.0,43966.0,0.07641825]
[1644270572028,0.00069457,43970.0,43966.0,0.07641825]
[1644270572229,0.00069457,43970.0,43966.0,0.12641825]
[1644270572428,0.00069457,43970.0,43966.0,0.14649038]
[1644270572833,0.02,43979.0,43966.0,0.14649038]
[1644270573030,0.0699121,43979.0,43972.0,0.27017747]
[1644270573231,0.0699121,43979.0,43977.0,0.07419581]
[1644270573627,0.0699121,43979.0,43976.0,0.15487468]
[1644270573830,0.0699121,43979.0,43977.0,0.0835375]
[1644270574583,0.02,43979.0,43977.0,0.30804279]
[1644270574782,0.02,43979.0,43977.0,0.0835375]
[1644270574984,0.0499121,43978.0,43974.0,0.02069779]
[1644270575185,0.0499121,43975.0,43974.0,0.02069779]
[1644270575784,0.3737191,43975.0,43974.0,0.02069779]
[1644270575985,0.4237191,43975.0,43974.0,0.02069779]
[1644270576289,1.35,43974.0,43958.0,0.3]
[1644270576484,0.5688,43968.0,43965.0,0.0190182]
[1644270576684,0.0499121,43966.0,43965.0,0.0190182]
[1644270576885,0.4192191,43966.0,43965.0,0.0190182]
[1644270577285,0.4692191,43966.0,43965.0,0.0190182]
[1644270577892,0.1454121,43966.0,43965.0,0.0190182]
[1644270578535,0.0455,43969.0,43966.0,1.35]
[1644270578737,0.00029228,43968.0,43966.0,1.35]
[1644270578934,0.01999396,43974.0,43967.0,0.05]
[1644270579133,0.00029228,43973.0,43966.0,0.15]
[1644270579334,0.02028624,43974.0,43966.0,0.15]
[1644270579535,0.02028624,43974.0,43968.0,0.05]
[1644270579536,0.00029228,43973.0,43968.0,0.05]
[1644270579737,0.01999396,43974.0,43971.0,0.24061217]
[1644270579936,0.00029228,43973.0,43972.0,0.07641904]
[1644270580140,0.01999396,43974.0,43964.0,0.30495403]
[1644270580340,0.00029228,43973.0,43964.0,0.20495403]
[1644270580542,0.01999396,43974.0,43964.0,0.37564554]
[1644270580737,0.00029228,43973.0,43964.0,0.42564554]
[1644270580935,0.00029228,43975.0,43970.0,0.23669173]
[1644270581137,0.00029228,43978.0,43970.0,0.23669173]
[1644270581335,0.02029228,43979.0,43970.0,0.23669173]
[1644270581536,0.00029228,43978.0,43973.0,0.08037307]
[1644270581736,0.323807,43978.0,43973.0,0.08037307]
[1644270582583,0.02,43979.0,43973.0,0.08037307]
[1644270583784,0.015,43979.0,43973.0,0.08037307]
[1644270583986,0.015,43979.0,43973.0,0.13037307]
[1644270583987,0.00069502,43978.0,43973.0,0.13037307]
[1644270584684,0.00069502,43978.0,43973.0,0.08037307]
[1644270584884,0.015,43979.0,43972.0,0.23579444]
[1644270585084,0.015,43979.0,43974.0,0.07760126]
[1644270585284,0.00069502,43978.0,43975.0,0.05]
[1644270585485,0.00069502,43978.0,43974.0,0.07760126]
[1644270585683,0.00069502,43978.0,43974.0,0.12760126]
[1644270585937,0.00069502,43978.0,43974.0,0.07760126]
[1644270586133,0.015,43979.0,43974.0,0.12760126]
[1644270586334,0.00069502,43978.0,43974.0,0.12760126]
[1644270587131,0.00069502,43978.0,43974.0,0.07760126]
[1644270587331,0.015,43979.0,43974.0,0.07760126]
[1644270587532,0.00069502,43978.0,43974.0,0.07760126]
[1644270588535,0.015,43979.0,43974.0,0.07760126]
[1644270588731,0.00069502,43978.0,43974.0,0.07760126]
[1644270589779,0.015,43979.0,43974.0,0.07760126]
[1644270590081,0.00069502,43978.0,43974.0,0.07760126]
[1644270590380,0.00069502,43978.0,43969.0,0.33286404]
[1644270590580,0.00069502,43978.0,43969.0,0.40275513]
[1644270590780,0.00069502,43978.0,43969.0,0.48325373]
[1644270590983,0.00029223,43978.0,43969.0,0.48325373]
[1644270591185,0.00069504,43976.0,43969.0,0.48325373]
[1644270591382,0.00069504,43976.0,43969.0,0.33325373]
[1644270591582,0.00069504,43976.0,43973.0,0.06490654]
[1644270592081,0.178725,43979.0,43973.0,0.06490654]
[1644270592481,0.00069503,43977.0,43973.0,0.06490654]
[1644270592885,0.00069503,43977.0,43973.0,0.11490654]
[1644270593430,0.015,43979.0,43973.0,0.16040654]
[1644270593632,0.00069503,43977.0,43973.0,0.16040654]
[1644270594630,0.00029223,43978.0,43973.0,0.16040654]
[1644270594831,0.00069503,43977.0,43973.0,0.16040654]
[1644270595232,0.00069503,43977.0,43973.0,0.46671495]
[1644270595834,0.00029223,43978.0,43973.0,0.56671495]
[1644270596034,0.01529223,43979.0,43977.0,0.05]
[1644270596233,0.015,43979.0,43978.0,0.43261918]
[1644270596438,0.015,43979.0,43978.0,0.53261918]
[1644270596734,0.015,43979.0,43978.0,1.09476324]
[1644270598785,0.015,43979.0,43978.0,1.14026324]
[1644270599386,0.00029223,43981.0,43979.0,1.69828411]
[1644270599587,0.00029223,43987.0,43986.0,0.23993319]
[1644270599885,0.0217612,43988.0,43987.0,0.31431019]
[1644270600284,0.0217612,43988.0,43987.0,0.41431019]
[1644270600488,0.0217612,43988.0,43987.0,0.49105088]
[1644270600686,0.0217612,43988.0,43987.0,0.78675207]
[1644270600687,0.01898169,43988.0,43987.0,0.78675207]
[1644270600932,0.02,43989.0,43987.0,0.73675207]
[1644270601131,0.02,43989.0,43988.0,0.29683348]
[1644270601333,0.02,43989.0,43988.0,0.34683348]
[1644270601830,0.02,43989.0,43988.0,0.44683348]
[1644270602834,0.02,43989.0,43988.0,0.15]
[1644270603232,0.02,43989.0,43987.0,0.49105088]
[1644270603435,0.00029223,43990.0,43988.0,1.35]
[1644270603733,0.00069488,43991.0,43989.0,0.05]
[1644270603934,0.00098711,43991.0,43989.0,0.05]
[1644270604136,0.00029223,43994.0,43989.0,0.05]
[1644270604333,0.01853144,43997.0,43994.0,0.32052251]
[1644270604586,0.00029223,43996.0,43994.0,0.32052251]
[1644270604782,0.01823921,43997.0,43994.0,0.47052251]
[1644270604981,0.01853144,43997.0,43994.0,0.47052251]
[1644270605181,0.01823921,43997.0,43994.0,0.47052251]
[1644270605381,0.00029223,43998.0,43994.0,0.47052251]
[1644270605581,0.02,43999.0,43995.0,0.08910866]
[1644270605784,0.00029223,43998.0,43994.0,0.1]
[1644270605981,0.00029223,43998.0,43995.0,0.07668663]
[1644270606384,0.02029223,43999.0,43995.0,0.07668663]
[1644270606984,0.02022368,43999.0,43996.0,0.05]
[1644270607884,0.02,43999.0,43996.0,0.05]
[1644270609029,0.02,43999.0,43996.0,0.10681853]
[1644270609630,0.02,43999.0,43996.0,0.15681853]
[1644270613986,0.02,43999.0,43996.0,0.1]
[1644270614388,0.02,43999.0,43996.0,0.05]
[1644270614788,0.02,43999.0,43994.0,0.58219123]
[1644270614988,0.02,43999.0,43996.0,0.07548504]
[1644270616645,0.02,43999.0,43996.0,0.18230042]
[1644270617745,0.02,43999.0,43997.0,0.0455]
[1644270617946,0.00029223,44002.0,43998.0,1.35]
[1644270618144,0.00029223,44007.0,43999.0,0.10229751]
[1644270618345,0.01975814,44008.0,43999.0,0.40229751]
[1644270618346,0.00029223,44002.0,43999.0,0.40229751]
[1644270618545,0.00029223,44007.0,43999.0,0.10229751]
[1644270618845,0.00029223,44007.0,44000.0,0.57998254]
[1644270619044,0.00029223,44007.0,44001.0,0.0455]
[1644270619344,0.01975814,44008.0,44003.0,0.07130039]
[1644270619345,0.02005037,44008.0,44003.0,0.07130039]
[1644270619598,0.00029223,44007.0,44004.0,0.34855167]
[1644270619797,0.02005037,44008.0,44004.0,0.49855167]
[1644270620002,0.00930133,44009.0,44005.0,1.3]
[1644270620198,0.00029311,44008.0,44006.0,0.34257048]
[1644270620398,0.00930133,44009.0,44007.0,0.2182411]
[1644270620598,0.00959444,44009.0,44007.0,0.2682411]
[1644270620897,0.00930133,44009.0,44007.0,0.2682411]
[1644270621101,0.00930133,44009.0,44008.0,0.31713445]
[1644270621697,0.00930133,44009.0,44008.0,0.36263445]
[1644270622298,0.00930133,44009.0,44008.0,0.71877497]
[1644270622503,0.00930133,44009.0,44008.0,0.66877497]
[1644270623098,0.00930133,44009.0,44008.0,0.71877497]
[1644270623346,0.00930133,44009.0,44008.0,0.51263445]
[1644270623541,0.00930133,44009.0,44008.0,0.36263445]
[1644270624341,0.00930133,44009.0,44008.0,0.51263445]
[1644270624541,0.00930133,44009.0,44008.0,0.76327788]
[1644270626141,0.00157383,44009.0,44008.0,0.76327788]
[1644270626743,0.00157383,44009.0,44008.0,0.51263445]
[1644270628483,0.00157383,44009.0,44008.0,0.36263445]
[1644270628686,0.00157383,44009.0,44008.0,0.31713445]
[1644270629885,0.05157383,44009.0,44008.0,0.31713445]
[1644270630087,0.00157383,44009.0,44008.0,0.31713445]
[1644270630289,0.05157383,44009.0,44008.0,0.31713445]
[1644270630487,0.19310982,44027.0,44010.0,1.35]
[1644270630689,0.05,44023.0,44011.0,0.10229149]
[1644270630940,0.05,44023.0,44011.0,0.15229149]
[1644270631139,0.05,44023.0,44011.0,0.45229149]
[1644270631341,0.05,44023.0,44012.0,0.14004798]
[1644270631537,0.05,44023.0,44018.0,0.22781465]
[1644270631743,0.05,44023.0,44018.0,0.33009865]
[1644270631937,0.05,44023.0,44018.0,0.43009865]
[1644270632137,0.05,44023.0,44018.0,0.48688057]
[1644270632345,0.21310982,44039.0,44019.0,1.35]
[1644270632542,0.02,44039.0,44033.0,0.03272946]
[1644270632744,9.32e-06,44039.0,44038.0,0.03272946]
[1644270632945,9.32e-06,44039.0,44038.0,0.07822946]
[1644270633339,9.32e-06,44039.0,44038.0,1.06189148]
[1644270633540,0.095,44044.0,44039.0,0.07126819]
[1644270633740,0.095,44044.0,44043.0,0.09451339]
[1644270633939,0.095,44044.0,44043.0,0.14001339]
[1644270634140,0.095,44044.0,44043.0,0.10225]
[1644270634341,0.095,44044.0,44043.0,0.0455]
[1644270634342,0.11227054,44044.0,44043.0,0.0455]
[1644270634791,0.095,44044.0,44043.0,0.0455]
[1644270635492,0.095,44044.0,44043.0,0.40430548]
[1644270635889,0.095,44044.0,44043.0,0.50430548]
[1644270636091,0.095,44044.0,44043.0,0.45430548]
[1644270636288,0.095,44044.0,44043.0,0.23081873]
[1644270636895,0.095,44044.0,44043.0,0.13081873]
[1644270638435,0.095,44044.0,44043.0,0.0455]
[1644270640737,0.16227054,44044.0,44043.0,0.0455]
[1644270640940,0.16227054,44044.0,44039.0,0.20148326]
[1644270641139,0.0455,44043.0,44039.0,0.01959912]
[1644270641340,0.01727054,44040.0,44039.0,0.01959912]
[1644270641738,0.09447235,44040.0,44039.0,0.01959912]
[1644270641939,0.13997235,44040.0,44039.0,0.01959912]
[1644270642987,0.05,44039.0,44035.0,0.01857775]
[1644270643190,0.0455,44038.0,44035.0,0.01857775]
[1644270643385,0.01727054,44036.0,44025.0,0.3909]
[1644270643587,0.0455,44038.0,44025.0,0.3909]
[1644270643588,0.32658348,44038.0,44025.0,0.3909]
[1644270643787,0.01727054,44028.0,44025.0,0.3909]
[1644270643989,0.01727054,44028.0,44025.0,0.05]
[1644270644190,0.06660717,44027.0,44025.0,0.1]
[1644270644390,0.11210717,44027.0,44023.0,0.05]
[1644270644590,0.11240147,44027.0,44023.0,0.05]
[1644270644788,0.15675977,44030.0,44025.0,0.45]
[1644270644989,0.01727054,44026.0,44025.0,0.45]
[1644270645190,0.01727054,44026.0,44025.0,0.55]
[1644270645389,0.01727054,44026.0,44025.0,0.1]
[1644270646236,0.01727054,44026.0,44020.0,0.34760112]
[1644270646439,0.0455,44031.0,44020.0,0.531405]
[1644270646440,0.00029463,44030.0,44020.0,0.531405]
[1644270646639,0.01727054,44023.0,44020.0,0.89029965]
[1644270647040,0.01727054,44023.0,44020.0,0.481405]
[1644270647239,0.01727054,44023.0,44020.0,0.28380388]
[1644270647840,0.01727054,44029.0,44021.0,0.03272946]
[1644270648040,0.0455,44031.0,44025.0,0.03272946]
[1644270648240,0.01727054,44026.0,44025.0,0.2513203]
[1644270648839,0.01727054,44026.0,44020.0,0.43380388]
[1644270649040,0.00029463,44027.0,44020.0,0.43380388]
[1644270649238,0.06834051,44028.0,44020.0,0.43380388]
[1644270649239,0.01727054,44022.0,44020.0,0.43380388]
[1644270649683,0.01727054,44022.0,44021.0,0.0007028]
[1644270650588,0.01727054,44022.0,44020.0,0.28380388]
[1644270652086,0.00029463,44027.0,44020.0,0.36653334]
[1644270652287,0.02160299,44030.0,44020.0,0.36653334]
[1644270652288,0.00029463,44025.0,44024.0,0.03272946]
[1644270652485,0.00029463,44027.0,44024.0,0.03272946]
[1644270652685,0.00029463,44029.0,44024.0,0.03272946]
[1644270652885,0.02189762,44030.0,44023.0,0.1067739]
[1644270653086,0.01727054,44031.0,44028.0,0.07018183]
[1644270653087,0.00029463,44029.0,44028.0,0.07018183]
[1644270653339,0.00029463,44030.0,44028.0,0.07018183]
[1644270653538,0.01778452,44031.0,44028.0,0.07018183]
[1644270653736,0.01748989,44031.0,44027.0,0.05677264]
[1644270653938,0.01727054,44028.0,44018.0,0.02144328]
[1644270654135,0.01727054,44028.0,44018.0,0.02134624]
[1644270654334,0.01727054,44028.0,44026.0,0.00070331]
[1644270655334,0.01727054,44028.0,44023.0,0.0858765]
[1644270655536,0.01727054,44024.0,44023.0,0.0858765]
[1644270655733,0.01727054,44024.0,44017.0,0.05678998]
[1644270655935,0.00070322,44031.0,44017.0,0.05678998]
[1644270655936,0.00029463,44029.0,44017.0,0.05678998]
[1644270656141,0.01727054,44019.0,44017.0,0.05678998]
[1644270656336,0.01727054,44019.0,44018.0,0.20727175]
[1644270656536,0.00029463,44026.0,44018.0,0.20727175]
[1644270656736,0.01727054,44020.0,44019.0,0.23555861]
[1644270656938,0.0009978,44031.0,44019.0,0.23555861]
[1644270657181,0.01727054,44022.0,44019.0,0.23555861]
[1644270657381,0.01727054,44022.0,44020.0,0.08687237]
[1644270660285,0.00029463,44024.0,44020.0,0.08687237]
[1644270660486,0.01727054,44025.0,44020.0,0.08687237]
[1644270660684,0.00029463,44024.0,44020.0,0.08687237]
[1644270660939,0.00029463,44029.0,44020.0,0.08687237]
[1644270661135,0.01727054,44022.0,44020.0,0.08687237]
[1644270670835,0.00276889,44021.0,44020.0,0.08687237]
[1644270671038,0.00276889,44021.0,44020.0,0.14365537]
[1644270672688,0.00276889,44021.0,44020.0,0.43742526]
[1644270674396,0.00276889,44021.0,44020.0,0.53742526]
[1644270674591,0.00276889,44021.0,44020.0,0.58742526]
[1644270676331,0.00268744,44021.0,44020.0,0.58742526]
[1644270676733,0.00268744,44021.0,44020.0,1.08742526]
[1644270678035,0.00268744,44021.0,44020.0,0.93742526]
[1644270679334,0.00268744,44021.0,44020.0,1.08742526]
[1644270679590,0.00268744,44021.0,44020.0,1.46202382]
[1644270680786,0.00268744,44021.0,44020.0,1.45478687]
[1644270680987,0.00268744,44021.0,44020.0,1.46092936]
[1644270681386,0.03711316,44030.0,44026.0,0.36831751]
[1644270681588,0.03711316,44030.0,44029.0,0.03272946]
[1644270681794,0.01756517,44038.0,44030.0,1.35]
[1644270681989,0.01727054,44038.0,44032.0,0.03272946]
[1644270682194,0.01727054,44041.0,44037.0,0.03272946]
[1644270682388,0.00029463,44040.0,44037.0,0.26445705]
[1644270682587,0.00029463,44041.0,44037.0,0.32121505]
[1644270682786,0.02010119,44042.0,44038.0,0.12215063]
[1644270682990,0.00029463,44041.0,44037.0,0.24719403]
[1644270683188,0.01756517,44042.0,44038.0,0.06681264]